bitfinex-derivatives/quotes_BTCF0:USTF0_20241208
["timestamp","ask_amount","ask_price","bid_price","bid_amount"]
[1733682689279,0.045115,99690.0,99689.0,0.06471895]
[1733682690881,0.045115,99690.0,99689.0,0.07071895]
[1733682691894,0.045115,99690.0,99689.0,0.07271895]
[1733682692192,0.045115,99690.0,99689.0,0.053115]
[1733682692590,0.045115,99690.0,99689.0,0.008]
[1733682715212,0.045115,99690.0,99689.0,0.18821072]
[1733682715405,0.045115,99690.0,99689.0,0.23332572]
[1733682716302,0.045115,99690.0,99689.0,0.053115]
[1733682718309,0.16446345,99690.0,99689.0,0.053115]
[1733682719207,0.045115,99690.0,99689.0,0.053115]
[1733682722313,0.045115,99690.0,99689.0,0.35437503]
[1733682725914,0.045115,99690.0,99689.0,0.35432054]
[1733682727013,0.045115,99690.0,99689.0,0.6552306]
[1733682729220,0.045115,99690.0,99689.0,0.6101156]
[1733682730221,0.045115,99690.0,99689.0,0.008]
[1733682731021,0.09388088,99690.0,99689.0,0.008]
[1733682731329,0.0938783,99690.0,99689.0,0.008]
[1733682731520,0.045115,99690.0,99689.0,0.008]
[1733682731721,0.09387788,99690.0,99689.0,0.008]
[1733682731922,0.19472098,99690.0,99689.0,0.008]
[1733682732117,0.19469957,99690.0,99689.0,0.008]
[1733682732320,0.19469838,99690.0,99689.0,0.008]
[1733682732728,0.045115,99690.0,99689.0,0.008]
[1733682733321,0.19469838,99690.0,99689.0,0.008]
[1733682733625,0.045115,99690.0,99689.0,0.008]
[1733682735822,0.045115,99690.0,99689.0,0.18852547]
[1733682736419,0.045115,99690.0,99689.0,0.008]
[1733682736619,0.045115,99690.0,99689.0,0.18845971]
[1733682737026,0.045115,99690.0,99689.0,0.008]
[1733682737219,0.16478281,99690.0,99689.0,0.24869732]
[1733682737420,0.16478445,99690.0,99689.0,0.24869732]
[1733682737726,0.045115,99690.0,99689.0,0.008]
[1733682738329,0.1647789,99690.0,99689.0,0.008]
[1733682738525,0.1647789,99690.0,99689.0,0.24869732]
[1733682739627,0.1647789,99690.0,99689.0,0.008]
[1733682739828,0.16477426,99690.0,99689.0,0.008]
[1733682740324,0.16477426,99690.0,99689.0,0.24869732]
[1733682740628,0.16477426,99690.0,99689.0,0.008]
[1733682743638,0.045115,99690.0,99689.0,0.008]
[1733682743927,0.16477426,99690.0,99689.0,0.008]
[1733682744629,0.045115,99690.0,99689.0,0.24869732]
[1733682744827,0.16477426,99690.0,99689.0,0.008]
[1733682745030,0.045115,99690.0,99689.0,0.008]
[1733682748436,0.19469838,99690.0,99689.0,0.008]
[1733682748837,0.045115,99690.0,99689.0,0.008]
[1733682749532,0.19469838,99690.0,99689.0,0.008]
[1733682749832,0.045115,99690.0,99689.0,0.008]
[1733682751732,0.19469838,99690.0,99689.0,0.008]
[1733682752338,0.045115,99690.0,99689.0,0.008]
[1733682752538,0.16473047,99690.0,99689.0,0.008]
[1733682752937,0.045115,99690.0,99689.0,0.008]
[1733682756735,0.045115,99690.0,99689.0,0.24869732]
[1733682756936,0.045115,99690.0,99689.0,0.008]
[1733682757137,0.16473047,99690.0,99689.0,0.008]
[1733682757343,0.045115,99690.0,99689.0,0.24869732]
[1733682757739,0.16473047,99690.0,99689.0,0.24869732]
[1733682758331,0.16473047,99690.0,99689.0,0.008]
[1733682758332,0.045115,99690.0,99689.0,0.008]
[1733682760240,0.16473047,99690.0,99689.0,0.008]
[1733682760442,0.045115,99690.0,99689.0,0.008]
[1733682760643,0.16473047,99690.0,99689.0,0.008]
[1733682760943,0.045115,99690.0,99689.0,0.008]
[1733682764140,0.045115,99690.0,99689.0,0.24871325]
[1733682765540,0.045115,99690.0,99689.0,0.008]
[1733682767652,0.09387934,99690.0,99689.0,0.008]
[1733682768452,0.45467934,99690.0,99689.0,0.008]
[1733682772243,0.45468075,99690.0,99689.0,0.008]
[1733682774552,0.63370342,99690.0,99689.0,0.008]
[1733682774756,0.45468075,99690.0,99689.0,0.008]
[1733682775559,0.405915,99690.0,99689.0,0.008]
[1733682777965,0.045115,99690.0,99689.0,0.008]
[1733682779257,0.16476116,99690.0,99689.0,0.008]
[1733682779454,0.045115,99690.0,99689.0,0.008]
[1733682780053,0.01,99696.0,99692.0,0.045114]
[1733682780054,0.11964616,99694.0,99692.0,0.045114]
[1733682780257,0.08974282,99695.0,99693.0,0.30091006]
[1733682780461,0.045108,99706.0,99694.0,0.3227914]
[1733682780669,0.045108,99706.0,99703.0,0.045109]
[1733682781060,0.045108,99706.0,99704.0,0.30076271]
[1733682781361,0.37070289,99712.0,99705.0,0.045108]
[1733682781568,0.045105,99711.0,99710.0,0.24058963]
[1733682781769,0.045105,99711.0,99705.0,0.045108]
[1733682781770,0.045105,99711.0,99707.0,0.24058963]
[1733682782264,0.37070289,99712.0,99707.0,0.24058963]
[1733682782460,0.045107,99708.0,99705.0,0.045108]
[1733682783558,0.045107,99708.0,99706.0,0.0631]
[1733682784366,0.046107,99708.0,99706.0,0.0631]
[1733682785357,0.047107,99708.0,99706.0,0.0631]
[1733682785863,0.046107,99708.0,99706.0,0.0631]
[1733682786066,0.047107,99708.0,99706.0,0.0631]
[1733682786670,0.002,99708.0,99706.0,0.0631]
[1733682786859,0.002,99708.0,99706.0,0.108207]
[1733682787059,0.002,99708.0,99707.0,0.46109386]
[1733682789265,0.001,99708.0,99707.0,0.46109386]
[1733682789476,0.002,99708.0,99707.0,0.46109386]
[1733682790671,0.01,99725.0,99723.0,0.0451]
[1733682790866,0.33704,99765.0,99708.0,0.045106]
[1733682790867,0.045097,99730.0,99727.0,0.045098]
[1733682791075,0.045097,99730.0,99724.0,0.0617]
[1733682791076,0.01,99747.0,99724.0,0.0617]
[1733682791263,0.01,99747.0,99718.0,0.3608]
[1733682791264,0.37066887,99732.0,99718.0,0.3608]
[1733682791570,0.045101,99719.0,99718.0,0.3608]
[1733682792071,0.045101,99719.0,99715.0,0.045103]
[1733682792268,0.045102,99718.0,99715.0,0.045103]
[1733682792473,0.045102,99718.0,99708.0,0.21099524]
[1733682792474,0.045102,99718.0,99716.0,0.045103]
[1733682792671,0.004,99725.0,99708.0,0.0312]
[1733682792971,0.004,99725.0,99715.0,0.3608]
[1733682793171,0.062,99731.0,99716.0,0.045103]
[1733682793172,0.006,99719.0,99716.0,0.045103]
[1733682793477,0.006,99719.0,99718.0,0.045102]
[1733682793772,0.047099,99725.0,99710.0,0.17979524]
[1733682793959,0.047099,99725.0,99708.0,0.04143171]
[1733682793960,0.002,99725.0,99723.0,0.045099]
[1733682794672,0.003,99725.0,99723.0,0.045099]
[1733682795469,0.004,99725.0,99718.0,0.3608]
[1733682795673,0.004,99725.0,99724.0,0.045099]
[1733682795972,0.01,99725.0,99724.0,0.045099]
[1733682796462,0.01,99725.0,99724.0,0.14537526]
[1733682796871,0.004,99725.0,99724.0,0.14537526]
[1733682797176,0.01,99725.0,99724.0,0.14637526]
[1733682797663,0.006,99725.0,99724.0,0.14637526]
[1733682797868,0.009,99725.0,99724.0,0.14637526]
[1733682798673,0.01,99725.0,99724.0,0.14637526]
[1733682802576,0.01,99725.0,99724.0,0.1656218]
[1733682802766,0.01,99738.0,99737.0,0.045093]
[1733682803070,0.045088,99748.0,99737.0,0.045093]
[1733682803071,0.045088,99748.0,99739.0,0.045092]
[1733682803270,0.00982444,99747.0,99739.0,0.045092]
[1733682804174,0.04521028,99740.0,99739.0,0.045092]
[1733682805272,0.04521028,99740.0,99739.0,0.046092]
[1733682805477,0.05121028,99740.0,99739.0,0.046092]
[1733682806074,0.05121028,99740.0,99739.0,0.047092]
[1733682806982,0.00611828,99740.0,99739.0,0.047092]
[1733682814379,0.00611828,99740.0,99739.0,0.407892]
[1733682814584,0.00611828,99740.0,99739.0,0.50815318]
[1733682814976,0.00611828,99740.0,99739.0,0.74788017]
[1733682815385,0.00611828,99740.0,99739.0,0.76707649]
[1733682815684,0.00711828,99740.0,99739.0,0.5263495]
[1733682816383,0.05221028,99740.0,99739.0,0.42608832]
[1733682816585,0.05221028,99740.0,99739.0,0.24520306]
[1733682816890,0.04921028,99740.0,99739.0,0.045092]
[1733682818290,0.045093,99738.0,99732.0,0.17991474]
[1733682818498,0.045093,99738.0,99737.0,0.045093]
[1733682819592,0.00411828,99740.0,99739.0,0.045092]
[1733682819789,0.00311828,99740.0,99739.0,0.045092]
[1733682820293,0.04521028,99740.0,99739.0,0.045092]
[1733682821095,0.09394713,99740.0,99739.0,0.045092]
[1733682821790,0.09694713,99740.0,99739.0,0.045092]
[1733682821989,0.09794713,99740.0,99739.0,0.045092]
[1733682824702,0.2769698,99740.0,99739.0,0.045092]
[1733682825594,0.09794713,99740.0,99739.0,0.045092]
[1733682826096,0.05285513,99740.0,99739.0,0.045092]
[1733682826297,0.1836345,99740.0,99739.0,0.405892]
[1733682826487,0.05285513,99740.0,99739.0,0.405892]
[1733682826688,0.05285513,99740.0,99739.0,0.42518294]
[1733682826996,0.0528524,99740.0,99739.0,0.42518294]
[1733682827391,0.15372486,99740.0,99739.0,0.42518294]
[1733682827690,0.01,99755.0,99739.0,0.82218125]
[1733682827897,0.14960658,99762.0,99754.0,0.3608]
[1733682828092,0.14960658,99763.0,99762.0,0.045082]
[1733682828493,0.14960658,99764.0,99762.0,0.045082]
[1733682829190,0.001,99763.0,99762.0,0.046082]
[1733682830192,0.003,99764.0,99762.0,0.001]
[1733682830396,0.004,99764.0,99763.0,0.045081]
[1733682830794,0.049081,99764.0,99763.0,0.045081]
[1733682830990,0.046081,99764.0,99763.0,0.045081]
[1733682831701,0.045081,99764.0,99763.0,0.045081]
[1733682832495,0.045081,99764.0,99763.0,0.046081]
[1733682832985,0.048081,99764.0,99763.0,0.047081]
[1733682835494,0.22827938,99764.0,99763.0,0.047081]
[1733682835898,0.22827812,99764.0,99763.0,0.047081]
[1733682836495,0.22827791,99764.0,99763.0,0.047081]
[1733682838196,0.048081,99764.0,99763.0,0.047081]
[1733682838604,0.22808803,99764.0,99763.0,0.047081]
[1733682842599,0.16758915,99764.0,99763.0,0.047081]
[1733682844707,0.048081,99764.0,99763.0,0.047081]
[1733682845101,0.16758915,99764.0,99763.0,0.047081]
[1733682846701,0.048081,99764.0,99763.0,0.047081]
[1733682852615,0.19746619,99764.0,99763.0,0.047081]
[1733682853514,0.048081,99764.0,99763.0,0.047081]
[1733682854511,0.19757308,99764.0,99763.0,0.047081]
[1733682855520,0.09680732,99764.0,99763.0,0.047081]
[1733682857718,0.3829116,99764.0,99763.0,0.047081]
[1733682861512,0.22919884,99764.0,99763.0,0.047081]
[1733682862118,0.43890413,99764.0,99763.0,0.047081]
[1733682862518,0.39017781,99764.0,99763.0,0.047081]
[1733682862821,0.43898229,99764.0,99763.0,0.047081]
[1733682865115,0.229277,99764.0,99763.0,0.047081]
[1733682865622,0.09680807,99764.0,99763.0,0.22711274]
[1733682870022,0.09680807,99764.0,99763.0,0.047081]
[1733682872614,0.21272885,99764.0,99763.0,0.14731806]
[1733682872821,0.05172641,99764.0,99763.0,0.50811806]
[1733682873124,0.05172641,99764.0,99763.0,0.52711461]
[1733682874422,0.05172641,99764.0,99763.0,0.52611461]
[1733682874626,0.05172641,99764.0,99763.0,0.52711461]
[1733682874921,0.05172641,99764.0,99763.0,0.53719593]
[1733682875126,0.05172641,99764.0,99763.0,0.53619593]
[1733682875325,0.05172641,99764.0,99763.0,0.51719938]
[1733682879524,0.003,99764.0,99763.0,0.51719938]
[1733682880222,0.003,99764.0,99763.0,0.50711806]
[1733682880422,0.048081,99764.0,99763.0,0.046081]
[1733682881320,0.16764506,99764.0,99763.0,0.046081]
[1733682881523,0.048081,99764.0,99763.0,0.046081]
[1733682881724,0.16764506,99764.0,99763.0,0.046081]
[1733682884731,0.17744993,99764.0,99763.0,0.046081]
[1733682885833,0.05788587,99764.0,99763.0,0.046081]
[1733682887731,0.28623448,99764.0,99763.0,0.046081]
[1733682888229,0.46741223,99764.0,99763.0,0.001]
[1733682888437,0.64703448,99764.0,99763.0,0.001]
[1733682888634,0.46741223,99764.0,99763.0,0.001]
[1733682888835,0.46741223,99764.0,99763.0,0.046082]
[1733682890123,0.59940555,99764.0,99763.0,0.046082]
[1733682891740,0.23860555,99764.0,99763.0,0.046082]
[1733682892735,0.09680736,99764.0,99763.0,0.046082]
[1733682894937,0.048081,99764.0,99763.0,0.046082]
[1733682907741,0.16768387,99764.0,99763.0,0.046082]
[1733682908139,0.048081,99764.0,99763.0,0.046082]
[1733682908336,0.16767838,99764.0,99763.0,0.046082]
[1733682908540,0.048081,99764.0,99763.0,0.046082]
[1733682910052,0.22919403,99764.0,99763.0,0.046082]
[1733682913349,0.22919856,99764.0,99763.0,0.046082]
[1733682913943,0.18411756,99764.0,99763.0,0.046082]
[1733682914146,0.05172543,99764.0,99763.0,0.16602783]
[1733682914646,0.1525557,99764.0,99763.0,0.16602783]
[1733682914839,0.003,99764.0,99763.0,0.16602783]
[1733682915042,0.1495557,99766.0,99763.0,0.16602783]
[1733682915245,0.1495557,99766.0,99765.0,0.045081]
[1733682915439,0.1495557,99767.0,99764.0,0.08390877]
[1733682915638,0.1495557,99768.0,99767.0,0.04508]
[1733682915842,0.1495557,99768.0,99767.0,0.06478877]
[1733682916446,0.1495557,99769.0,99767.0,0.11994482]
[1733682916654,0.1495557,99769.0,99768.0,0.06478777]
[1733682916845,0.1495557,99769.0,99768.0,0.42558777]
[1733682917343,0.1495557,99769.0,99768.0,0.52582081]
[1733682917544,0.1495557,99770.0,99769.0,0.045079]
[1733682917944,0.08970498,99771.0,99770.0,0.045078]
[1733682918147,0.08970498,99771.0,99770.0,0.22518255]
[1733682918347,0.08970498,99772.0,99771.0,0.045078]
[1733682919054,0.08970498,99772.0,99771.0,0.14530802]
[1733682919249,0.11960665,99777.0,99775.0,0.045076]
[1733682919451,0.11960665,99781.0,99772.0,0.24004232]
[1733682919655,0.08966964,99782.0,99779.0,0.405874]
[1733682919852,0.045068,99793.0,99779.0,0.405874]
[1733682919853,0.08966964,99783.0,99779.0,0.405874]
[1733682920147,0.08966964,99784.0,99779.0,0.438174]
[1733682920544,0.08966964,99785.0,99779.0,0.438174]
[1733682921050,0.08966964,99786.0,99779.0,0.53839498]
[1733682921353,0.08966964,99786.0,99779.0,0.5578419]
[1733682921550,0.01,99795.0,99779.0,0.5578419]
[1733682921551,0.08966964,99789.0,99779.0,0.5578419]
[1733682921946,0.08966964,99791.0,99779.0,0.5578419]
[1733682922155,0.08966964,99791.0,99790.0,0.045069]
[1733682922451,0.18962765,99800.0,99799.0,0.045065]
[1733682922644,0.1,99800.0,99799.0,0.405865]
[1733682923052,0.1,99800.0,99799.0,0.4250411]
[1733682923255,0.1,99800.0,99794.0,0.045068]
[1733682923445,0.1,99800.0,99790.0,0.54169101]
[1733682923446,0.1,99800.0,99790.0,0.001]
[1733682923652,0.045066,99798.0,99796.0,0.045067]
[1733682924946,0.05515052,99798.0,99796.0,0.045067]
[1733682926351,0.1,99800.0,99798.0,0.045065]
[1733682928547,0.1,99800.0,99798.0,0.046065]
[1733682932750,0.1,99800.0,99799.0,0.045065]
[1733682934046,0.145065,99800.0,99799.0,0.046065]
[1733682934661,0.145065,99800.0,99799.0,0.047065]
[1733682935154,0.145065,99800.0,99799.0,0.002]
[1733682938763,0.145065,99800.0,99799.0,0.047065]
[1733682948055,0.19377383,99800.0,99799.0,0.047065]
[1733682948763,0.32900748,99800.0,99799.0,0.047065]
[1733682951065,0.32917319,99800.0,99799.0,0.047065]
[1733682953268,0.28410819,99800.0,99799.0,0.047065]
[1733682955063,0.1,99800.0,99799.0,0.047065]
[1733682959557,0.1,99800.0,99799.0,0.407865]
[1733682959762,0.21980508,99800.0,99799.0,0.64790732]
[1733682960178,0.1,99800.0,99799.0,0.407865]
[1733682961558,0.1,99800.0,99799.0,0.5080659]
[1733682961874,0.1,99800.0,99799.0,0.5400659]
[1733682962061,0.1,99800.0,99799.0,0.55929854]
[1733682963374,0.14870321,99800.0,99799.0,0.55929854]
[1733682966068,0.14870321,99800.0,99799.0,0.5400659]
[1733682970272,0.18977806,99800.0,99799.0,0.78033288]
[1733682971065,0.1,99800.0,99799.0,0.5400659]
[1733682973188,0.1,99800.0,99799.0,0.55926461]
[1733682974974,0.1,99800.0,99799.0,0.52726461]
[1733682975190,0.1,99800.0,99799.0,0.5080659]
[1733682975478,0.1,99800.0,99799.0,0.68821454]
[1733682976271,0.1,99800.0,99799.0,0.32741454]
[1733682976771,0.1,99800.0,99799.0,0.1472659]
[1733682977471,0.21970408,99800.0,99799.0,0.1472659]
[1733682978280,0.14870584,99800.0,99799.0,0.1472659]
[1733682982983,0.14870555,99800.0,99799.0,0.1472659]
[1733682985285,0.21978542,99800.0,99799.0,0.38744781]
[1733682989682,0.1,99800.0,99799.0,0.1472659]
[1733682989876,0.1898684,99800.0,99799.0,0.16642105]
[1733682990078,0.1,99800.0,99799.0,0.46647395]
[1733682991091,0.1,99800.0,99799.0,0.45344765]
[1733682992883,0.1,99800.0,99799.0,0.45244765]
[1733682997386,0.1,99800.0,99799.0,0.45137725]
[1733683000288,0.1,99800.0,99799.0,0.16542105]
[1733683001695,0.1,99800.0,99799.0,0.40542358]
[1733683001997,0.1,99800.0,99799.0,0.16542105]
[1733683003396,0.0898684,99808.0,99807.0,0.045062]
[1733683003582,0.0898684,99808.0,99807.0,0.405862]
[1733683003786,0.0898684,99810.0,99809.0,0.045061]
[1733683003987,0.14984737,99820.0,99810.0,0.04506]
[1733683003988,0.0898684,99811.0,99810.0,0.04506]
[1733683004182,0.0898684,99811.0,99807.0,0.52596001]
[1733683004183,0.0898684,99812.0,99807.0,0.50697487]
[1733683004388,0.0898684,99812.0,99811.0,0.04506]
[1733683004985,0.0898684,99813.0,99810.0,0.3608]
[1733683005186,0.0898684,99813.0,99812.0,0.045059]
[1733683005401,0.0898684,99813.0,99812.0,0.06394009]
[1733683005904,0.0898684,99813.0,99812.0,0.16412794]
[1733683006291,0.0001156,99820.0,99812.0,0.16412794]
[1733683006292,0.0898684,99814.0,99813.0,0.045059]
[1733683007100,0.0898684,99814.0,99813.0,0.14524584]
[1733683007692,0.0898684,99814.0,99813.0,0.14624584]
[1733683008300,0.0001156,99820.0,99819.0,0.045056]
[1733683008495,0.0001156,99820.0,99819.0,0.405856]
[1733683008692,0.0001156,99820.0,99819.0,0.045056]
[1733683008892,0.0001156,99820.0,99819.0,0.50603682]
[1733683009701,0.0001156,99820.0,99819.0,0.50703682]
[1733683010600,0.0001156,99820.0,99819.0,0.525915]
[1733683014196,0.0001156,99820.0,99819.0,0.76566559]
[1733683014397,0.0001156,99820.0,99819.0,0.525915]
[1733683015489,0.08977038,99820.0,99819.0,0.525915]
[1733683015896,0.0001156,99820.0,99819.0,0.525915]
[1733683016300,0.08977038,99820.0,99819.0,0.525915]
[1733683016800,0.0001156,99820.0,99819.0,0.525915]
[1733683017195,0.08977038,99820.0,99819.0,0.525915]
[1733683018598,0.08979437,99820.0,99819.0,0.525915]
[1733683019205,0.0001156,99820.0,99819.0,0.525915]
[1733683020299,0.0001156,99820.0,99819.0,0.52586142]
[1733683020608,0.0001156,99820.0,99819.0,0.50703682]
[1733683020905,0.11990102,99820.0,99819.0,0.50703682]
[1733683021200,0.0001156,99820.0,99819.0,0.50703682]
[1733683021402,0.0001156,99820.0,99819.0,0.52587806]
[1733683022603,0.11990102,99820.0,99819.0,0.52587806]
[1733683022796,0.0001156,99820.0,99819.0,0.52587806]
[1733683026404,0.0001156,99820.0,99819.0,0.50703682]
[1733683027409,0.0001156,99820.0,99819.0,0.52587226]
[1733683027608,0.0001156,99820.0,99819.0,0.50703682]
[1733683028498,0.0001156,99820.0,99819.0,0.80703998]
[1733683028901,0.0001156,99820.0,99819.0,0.50703682]
[1733683029106,0.0001156,99820.0,99819.0,0.80703998]
[1733683029702,0.0001156,99820.0,99819.0,0.79022157]
[1733683029906,0.0001156,99820.0,99819.0,0.80903688]
[1733683035919,0.0001156,99820.0,99819.0,0.87113688]
[1733683036723,0.08971531,99830.0,99819.0,0.87113688]
[1733683036929,0.01,99834.0,99829.0,0.3608]
[1733683036930,0.08971531,99834.0,99829.0,0.3608]
[1733683037231,0.08971531,99843.0,99842.0,0.045046]
[1733683037415,0.08971531,99847.0,99846.0,0.045044]
[1733683037617,0.08971531,99848.0,99847.0,0.045044]
[1733683038019,0.08971531,99848.0,99847.0,0.14519773]
[1733683038523,0.00768,99850.0,99847.0,0.10015373]
[1733683038719,0.04868023,99849.0,99848.0,0.045043]
[1733683039325,0.04868023,99849.0,99848.0,0.14519472]
[1733683039624,0.14954947,99849.0,99848.0,0.14519472]
[1733683039818,0.00768,99850.0,99849.0,0.045043]
[1733683040017,0.05636033,99850.0,99849.0,0.045043]
[1733683040632,0.00768,99850.0,99849.0,0.14519472]
[1733683041327,0.15716235,99850.0,99849.0,0.14519472]
[1733683041830,0.00768,99850.0,99849.0,0.14619472]
[1733683043432,0.12721093,99850.0,99849.0,0.14619472]
[1733683044236,0.00768,99850.0,99849.0,0.14619472]
[1733683047927,0.00768,99850.0,99849.0,0.32621525]
[1733683048130,0.00768,99850.0,99849.0,0.14619472]
[1733683048634,0.00768,99850.0,99849.0,0.32577472]
[1733683050331,0.00768,99850.0,99849.0,0.14619472]
[1733683051736,0.00768,99850.0,99849.0,0.32572485]
[1733683051934,0.00768,99850.0,99849.0,0.14619472]
[1733683052337,0.0316,99867.0,99863.0,0.045036]
[1733683052526,0.12119754,99867.0,99866.0,0.045035]
[1733683052732,0.0316,99867.0,99866.0,0.045035]
[1733683055426,0.0316,99867.0,99866.0,0.05625541]
[1733683060237,0.0316,99867.0,99866.0,0.046035]
[1733683062843,0.0316,99867.0,99866.0,0.001]
[1733683065437,0.15113093,99867.0,99866.0,0.001]
[1733683066449,0.0316,99867.0,99866.0,0.001]
[1733683066645,0.04143723,99867.0,99866.0,0.001]
[1733683066838,0.04143723,99867.0,99850.0,9.792e-05]
[1733683066839,0.045042,99851.0,99850.0,9.792e-05]
[1733683067038,0.405842,99851.0,99850.0,9.792e-05]
[1733683067451,0.45452745,99851.0,99850.0,9.792e-05]
[1733683068440,0.45452745,99851.0,99836.0,0.01]
[1733683068441,0.045048,99837.0,99836.0,0.01]
[1733683068640,0.04505,99834.0,99833.0,0.04505]
[1733683068840,0.1646155,99834.0,99833.0,0.04505]
[1733683069040,0.04505,99834.0,99833.0,0.04505]
[1733683069539,0.04505,99833.0,99832.0,0.0924781]
[1733683070548,0.03,99835.0,99830.0,0.00011233]
[1733683070743,0.045051,99831.0,99830.0,0.00011233]
[1733683070947,0.19450948,99831.0,99830.0,0.00011233]
[1733683071147,0.09374749,99831.0,99830.0,0.00011233]
[1733683071343,0.045051,99831.0,99830.0,0.00011233]
[1733683072545,0.046051,99831.0,99830.0,0.00011233]
[1733683074551,0.16529214,99831.0,99830.0,0.00011233]
[1733683074753,0.046051,99831.0,99830.0,0.00011233]
[1733683074947,0.16529528,99831.0,99830.0,0.00011233]
[1733683075450,0.046051,99831.0,99830.0,0.00011233]
[1733683088650,0.406851,99831.0,99830.0,0.00011233]
[1733683089152,0.045056,99820.0,99819.0,0.01]
[1733683089348,0.045058,99815.0,99805.0,0.01]
[1733683089549,0.045063,99805.0,99798.0,0.0324]
[1733683090046,0.045063,99805.0,99800.0,9.924e-05]
[1733683090949,0.045063,99805.0,99804.0,0.00650273]
[1733683091251,0.045063,99805.0,99804.0,0.005]
[1733683092052,0.045063,99805.0,99804.0,0.007]
[1733683093454,0.05521705,99805.0,99804.0,0.007]
[1733683094149,0.14462063,99805.0,99804.0,0.007]
[1733683094351,0.05521705,99805.0,99804.0,0.007]
[1733683096560,0.17446133,99805.0,99804.0,0.007]
[1733683096763,0.05521705,99805.0,99800.0,9.924e-05]
[1733683096947,0.045064,99801.0,99800.0,9.924e-05]
[1733683097858,0.045064,99801.0,99800.0,0.00309924]
[1733683098952,0.045064,99801.0,99800.0,0.00909924]
[1733683101365,0.13457972,99801.0,99800.0,0.00909924]
[1733683101555,0.055064,99801.0,99800.0,0.00909924]
[1733683102162,0.17444767,99801.0,99800.0,0.00909924]
[1733683102361,0.055064,99801.0,99800.0,0.00909924]
[1733683102763,0.415864,99801.0,99800.0,0.00909924]
[1733683103667,0.405864,99801.0,99800.0,0.00909924]
[1733683112269,0.49536816,99801.0,99800.0,0.00909924]
[1733683113267,0.405864,99801.0,99800.0,0.00909924]
[1733683113573,0.4545772,99801.0,99800.0,0.00909924]
[1733683113962,0.405864,99801.0,99800.0,0.00909924]
[1733683114268,0.55519625,99801.0,99800.0,0.00909924]
[1733683115372,0.45457575,99801.0,99800.0,0.00909924]
[1733683118273,0.63357948,99801.0,99800.0,0.00909924]
[1733683119475,0.45457575,99801.0,99800.0,0.00909924]
[1733683120572,0.405864,99801.0,99800.0,0.00909924]
[1733683123571,0.55558312,99801.0,99800.0,0.00909924]
[1733683123978,0.405864,99801.0,99800.0,0.00909924]
[1733683124370,0.55558312,99801.0,99800.0,0.00909924]
[1733683124768,0.405864,99801.0,99800.0,0.00909924]
[1733683126779,0.045064,99801.0,99800.0,0.00909924]
[1733683127076,0.405864,99801.0,99800.0,0.00909924]
[1733683127470,0.59026501,99801.0,99800.0,0.00909924]
[1733683127669,0.45457545,99801.0,99800.0,0.00909924]
[1733683131376,0.09377545,99801.0,99800.0,0.00909924]
[1733683131875,0.45457545,99801.0,99800.0,0.00909924]
[1733683133378,0.59012887,99801.0,99800.0,0.00909924]
[1733683133788,0.45457545,99801.0,99800.0,0.00909924]
[1733683135280,0.59014,99801.0,99800.0,0.00909924]
[1733683135478,0.59014,99801.0,99800.0,0.18859524]
[1733683135679,0.45457545,99801.0,99800.0,0.18859524]
[1733683135880,0.45457545,99801.0,99800.0,0.00909924]
[1733683137177,0.45457524,99801.0,99800.0,0.00909924]
[1733683140991,0.45457517,99801.0,99800.0,0.00909924]
[1733683142483,0.2292497,99801.0,99800.0,0.00909924]
[1733683142685,0.5900497,99801.0,99800.0,0.00909924]
[1733683145189,0.2292497,99801.0,99800.0,0.00909924]
[1733683145394,0.18053853,99801.0,99800.0,0.00909924]
[1733683145597,0.09377366,99801.0,99800.0,0.00909924]
[1733683145789,0.22957773,99801.0,99800.0,0.00909924]
[1733683150800,0.09377366,99801.0,99800.0,0.18945411]
[1733683155094,0.0937745,99801.0,99800.0,0.00909924]
[1733683157707,0.22957195,99801.0,99800.0,0.00909924]
[1733683165606,0.0937745,99801.0,99800.0,0.1894576]
[1733683167803,0.0937745,99801.0,99800.0,0.00909924]
[1733683168513,0.1499015,99801.0,99800.0,0.05416424]
[1733683168703,0.1499015,99801.0,99800.0,0.34160085]
[1733683168704,0.08995355,99801.0,99800.0,0.34160085]
[1733683168899,8.497e-05,99810.0,99809.0,0.045061]
[1733683169100,8.497e-05,99810.0,99809.0,0.405861]
[1733683169314,8.497e-05,99810.0,99809.0,0.42494398]
[1733683169805,8.497e-05,99810.0,99809.0,0.72517261]
[1733683170217,8.497e-05,99810.0,99809.0,0.42794398]
[1733683171504,8.497e-05,99810.0,99809.0,0.408861]
[1733683172208,8.497e-05,99810.0,99809.0,0.64876227]
[1733683172610,8.497e-05,99810.0,99809.0,0.41903851]
[1733683173310,8.497e-05,99810.0,99809.0,0.59892028]
[1733683173503,8.497e-05,99810.0,99809.0,0.23812028]
[1733683173705,8.497e-05,99810.0,99809.0,0.59892028]
[1733683173906,8.497e-05,99810.0,99809.0,0.23812028]
[1733683174108,8.497e-05,99810.0,99809.0,0.41903851]
[1733683174809,8.497e-05,99810.0,99809.0,0.59892028]
[1733683175007,8.497e-05,99810.0,99809.0,0.41903851]
[1733683177603,8.497e-05,99810.0,99809.0,0.003]
[1733683177804,0.49580998,99810.0,99809.0,0.003]
[1733683178016,0.40594497,99810.0,99809.0,0.003]
[1733683178316,0.045064,99801.0,99800.0,9.924e-05]
[1733683178505,0.405864,99801.0,99800.0,9.924e-05]
[1733683179409,0.405864,99801.0,99800.0,0.00909924]
[1733683180705,0.45457664,99801.0,99800.0,0.00909924]
[1733683184126,0.45457776,99801.0,99800.0,0.00909924]
[1733683185013,0.63445679,99801.0,99800.0,0.00909924]
[1733683185723,0.45457776,99801.0,99800.0,0.00909924]
[1733683186222,0.63445679,99801.0,99800.0,0.00909924]
[1733683187313,0.45457776,99801.0,99800.0,0.00909924]
[1733683187616,0.405864,99801.0,99800.0,0.00909924]
[1733683189814,0.55528655,99801.0,99800.0,0.00909924]
[1733683190418,0.56028655,99801.0,99800.0,0.00309924]
[1733683191220,0.56017423,99801.0,99800.0,0.00309924]
[1733683191420,0.56217423,99801.0,99800.0,9.924e-05]
[1733683191920,0.412864,99801.0,99800.0,9.924e-05]
[1733683192128,0.412864,99801.0,99800.0,0.00109924]